fUSD/lending_fUSD_20250410
["ID","MTS","AMOUNT","RATE_DAILY","PERIOD"]
[357636124,1744262810056,-150.0,0.00055327,120]
[357636125,1744262810093,-150.0,0.00055346,120]
[357636126,1744262810130,-150.0,0.00055365,120]
[357636127,1744262810165,-150.0,0.00055384,120]
[357636128,1744262810202,-150.0,0.00055403,120]
[357636129,1744262810238,-150.0,0.00055422,120]
[357636130,1744262810274,-150.0,0.00055441,120]
[357636131,1744262810309,-150.0,0.0005546,120]
[357636132,1744262810345,-150.0,0.00055479,120]
[357636133,1744262810382,-150.0,0.00055498,120]
[357636134,1744262810420,-150.0,0.00055517,120]
[357636135,1744262810459,-150.0,0.00055536,120]
[357636136,1744262810497,-150.0,0.00055555,120]
[357636137,1744262810537,-150.0,0.00055574,120]
[357636138,1744262810576,-150.0,0.00055593,120]
[357636139,1744262810614,-150.0,0.00055612,120]
[357636140,1744262810652,-150.0,0.00055631,120]
[357636141,1744262810689,-150.0,0.0005565,120]
[357636142,1744262810728,-150.0,0.00055669,120]
[357636143,1744262810769,-150.0,0.00055688,120]
[357636144,1744262810811,-150.0,0.00055708,120]
[357636145,1744262810848,-150.0,0.00055727,120]
[357636146,1744262810889,-150.0,0.00055746,120]
[357636147,1744262810930,-150.0,0.00055765,120]
[357636148,1744262810969,-150.0,0.00055784,120]
[357636149,1744262811009,-150.0,0.00055803,120]
[357636150,1744262811046,-150.0,0.00055822,120]
[357636151,1744262811084,-150.0,0.00055841,120]
[357636152,1744262811121,-150.0,0.0005586,120]
[357636153,1744262811157,-150.0,0.00055879,120]
[357636154,1744262811194,-150.0,0.00055898,120]
[357636155,1744262811232,-150.0,0.00055917,120]
[357636156,1744262811270,-150.0,0.00055936,120]
[357636157,1744262811306,-1020.0,0.00056,120]
[357636158,1744262811344,-150.0,0.00056237,120]
[357636159,1744262811380,-150.0,0.00057318,120]
[357636160,1744262811416,-2321.94,0.00058,60]
[357636161,1744262811454,-150.0,0.000584,120]
[357636162,1744262811491,-1164607.01629812,0.000584,120]
[357636163,1744262811529,-228.0,0.000584,120]
[357636164,1744262811566,-150.0,0.00058441,120]
[357636165,1744262811605,-151.041005,0.00058498,120]
[357636166,1744262811644,-1000000.0,0.000585,120]
[357636167,1744262811680,-150.0,0.00058559,120]
[357636168,1744262811717,-500.0,0.0005863,120]
[357636169,1744262811753,-150.0,0.00058757,120]
[357636170,1744262811790,-1000.0,0.00058766,30]
[357636171,1744262811827,-151.041005,0.00058798,120]
[357636172,1744262811864,-427.77777,0.000588,120]
[357636173,1744262811901,-205.3645,0.000588,120]
[357636174,1744262811943,-1000.0,0.000588,120]
[357636175,1744262811981,-1000.0,0.000588,120]
[357636176,1744262812018,-264000.0,0.00058899,30]
[357636177,1744262812053,-111954.61054935,0.0005891,30]
[357636178,1744262812094,-50000.0,0.00059,59]
[357636179,1744262812140,-50000.0,0.00059,69]
[357636180,1744262812179,-2045.043925,0.00059,120]
[357636181,1744262812216,-150000.0,0.00059,120]
[357636182,1744262812255,-183624.30494753,0.00059,120]
[357636183,1744262817251,-150.0,0.00055955,120]
[357636184,1744262817288,-150.0,0.00055974,120]
[357636185,1744262817325,-150.0,0.00055993,120]
[357636186,1744262817363,-150.0,0.00056012,120]
[357636187,1744262817404,-816375.69505247,0.00059,120]
[357636188,1744262817446,-1000000.0,0.00059,120]
[357636189,1744262817486,-1000000.0,0.00059,120]
[357636190,1744262817857,-183024.30494753,0.00059,120]
[357636191,1744262826941,-1000.0,0.00034,120]
[357636192,1744262826992,-1000.0,0.00038,120]
[357636193,1744262827858,-241.8601454,0.00048222,30]
[357636194,1744262827901,-150.0,0.00048222,30]
[357636195,1744262827964,-7000.0,0.000575,120]
[357636196,1744262828004,-652.0,0.00058,120]
[357636197,1744262828047,-816975.69505247,0.00059,120]
[357636198,1744262828085,-1027.0,0.00059,60]
[357636199,1744262828130,-1000000.0,0.00059,120]
[357636200,1744262828172,-150.0,0.00059134,120]
[357636201,1744262828210,-203.06153786,0.00059309,120]
[357636202,1744262828248,-500.0,0.00059452,120]
[357636203,1744262828285,-150.0,0.00059481,120]
[357636204,1744262828322,-151.041005,0.00059498,120]
[357636205,1744262828363,-1000000.0,0.000595,120]
[357636206,1744262828400,-150.36,0.000597,57]
[357636207,1744262828439,-2217.03945096,0.000598,120]
[357636208,1744262828478,-378.88841467,0.000598,120]
[357636209,1744262828517,-3000.0,0.000598,120]
[357636210,1744262828555,-4000.0,0.00059876,60]
[357636211,1744262828596,-47801.15693048,0.00059876,31]
[357636212,1744262828634,-1812.89591544,0.00059893,120]
[357636213,1744262828673,-1000.0,0.000599,120]
[357636214,1744262828711,-1000.0,0.000599,120]
[357636215,1744262828750,-1000.0,0.000599,120]
[357636216,1744262828788,-1000.0,0.000599,120]
[357636217,1744262828827,-2000.0,0.000599,120]
[357636218,1744262828867,-9557.87812131,0.0005998,30]
[357636219,1744262828906,-95881.12342641,0.0005999,120]
[357636220,1744262832473,620.17750357,0.00015,2]
[357636221,1744262833826,-73117.87657359,0.0005999,120]
[357636222,1744262833867,-1000.0,0.00059999,120]
[357636223,1744262833911,-50000.0,0.0006,60]
[357636224,1744262833953,-50000.0,0.0006,70]
[357636225,1744262833991,-163.86170796,0.0006,120]
[357636226,1744262834028,-1000.0,0.0006,30]
[357636227,1744262834069,-1000000.0,0.0006,120]
[357636228,1744262834106,-6113.0,0.0006,30]
[357636229,1744262834146,-250.0,0.0006,120]
[357636230,1744262834184,-6000.0,0.0006,120]
[357636231,1744262834221,-6000.0,0.0006,120]
[357636232,1744262834258,-6000.0,0.0006,120]
[357636233,1744262834295,-6000.0,0.0006,120]
[357636234,1744262834330,-150.0,0.0006,120]
[357636235,1744262834367,-598.09454053,0.0006,120]
[357636236,1744262834405,-11535.0,0.0006,120]
[357636237,1744262834442,-10394.528875,0.0006,120]
[357636238,1744262834480,-500.0,0.0006,120]
[357636239,1744262834519,-889.35,0.0006,120]
[357636240,1744262834559,-1000000.0,0.0006,120]
[357636241,1744262834596,-14466.89265595,0.0006,120]
[357636242,1744262834633,-500.0,0.0006,120]
[357636243,1744262834672,-154.42,0.0006,120]
[357636244,1744262834709,-2178.88373331,0.0006,120]
[357636245,1744262834747,-3302.52006262,0.0006,120]
[357636246,1744262834783,-70000.01,0.0006,30]
[357636247,1744262834821,-10000.0,0.0006,120]
[357636248,1744262834860,-6616.5,0.0006,120]
[357636249,1744262834900,-3626.90169736,0.0006,120]
[357636250,1744262834940,-5383.34015021,0.0006,120]
[357636251,1744262834979,-4291.98708844,0.0006,120]
[357636252,1744262835019,-44629.0,0.0006,120]
[357636253,1744262835059,-575.9918,0.0006,120]
[357636254,1744262835100,-3000.0,0.0006,30]
[357636255,1744262835142,-1342.44672448,0.0006,105]
[357636256,1744262835183,-150.0,0.00060037,120]
[357636257,1744262835224,-1237.39,0.00060096,120]
[357636258,1744262835262,-500.0,0.00060273,120]
[357636259,1744262835304,-1270.9,0.00060273,120]
[357636260,1744262835343,-1270.9,0.00060273,120]
[357636261,1744262835384,-1270.9,0.00060273,120]
[357636262,1744262835423,-1270.9,0.00060273,120]
[357636263,1744262835462,-1270.9,0.00060273,120]
[357636264,1744262835499,-1270.9,0.00060273,120]
[357636265,1744262835536,-1270.9,0.00060273,120]
[357636266,1744262835573,-1270.9,0.00060273,120]
[357636267,1744262835612,-1270.9,0.00060273,120]
[357636268,1744262835649,-1270.9,0.00060273,120]
[357636269,1744262835686,-1270.9,0.00060273,120]
[357636270,1744262835725,-1270.9,0.00060273,120]
[357636271,1744262835762,-1270.9,0.00060273,120]
[357636272,1744262835800,-1270.9,0.00060273,120]
[357636273,1744262835837,-1270.9,0.00060273,120]
[357636274,1744262835873,-1270.9,0.00060273,120]
[357636275,1744262835911,-1270.9,0.00060273,120]
[357636276,1744262835948,-1270.9,0.00060273,120]
[357636277,1744262835986,-1270.9,0.00060273,120]
[357636278,1744262836023,-1270.9,0.00060273,120]
[357636279,1744262836062,-1270.9,0.00060273,120]
[357636280,1744262836100,-1270.9,0.00060273,120]
[357636281,1744262836137,-1270.9,0.00060273,120]
[357636282,1744262836175,-1271.07715727,0.00060273,120]
[357636283,1744262836212,-1151.9,0.00060273,120]
[357636284,1744262836247,-3079.45,0.00060274,120]
[357636285,1744262836958,200.0,0.00059,120]
[357636286,1744262837052,207.4,0.00059,120]
[357636287,1744262837153,215.0738,0.00059,120]
[357636288,1744262837324,223.0315306,0.00059,120]
[357636289,1744262837486,17102.32,0.0005,60]
[357636290,1744262837531,732.28569823,0.00015,2]
[357636291,1744262837583,231.28369723,0.00059,120]
[357636292,1744262837636,17102.32,0.00054,60]
[357636293,1744262837685,6579.99515699,0.00048222,30]
[357636294,1744262837797,17102.32,0.00058,60]
[357636295,1744262837849,239.84119403,0.00059,120]
[357636296,1744262837884,-1112.8369968,0.00019399,2]
[357636297,1744262838207,248.71531821,0.00059,120]
[357636298,1744262838370,257.91778498,0.00059,120]
[357636299,1744262839012,267.46074303,0.00059,120]
[357636300,1744262839105,-337.3725197,0.00019399,2]
[357636301,1744262839128,-3916.1984,0.000199,2]
[357636302,1744262839150,-392.9936,0.000199,2]
[357636303,1744262839172,-1000.0,0.000199,2]
[357636304,1744262839195,-1253.0925975,0.000199,2]
[357636305,1744262839216,-1253.0925975,0.000199,2]
[357636306,1744262839239,-1006.0,0.0002,2]
[357636307,1744262839263,-92314.48625457,0.0002,2]
[357636308,1744262839658,277.35679052,0.00059,120]
[357636309,1744262840167,-7191.37003242,0.0002,2]
[357636310,1744262840904,287.61899177,0.00059,120]
[357636311,1744262841539,298.26089446,0.00059,120]
[357636312,1744262842168,309.29654756,0.00059,120]
[357636313,1744262843347,320.74051982,0.00059,120]
[357636314,1744262843985,332.60791905,0.00059,120]
[357636315,1744262844074,1000.0,0.0006,120]
[357636316,1744262844599,344.91441206,0.00059,120]
[357636317,1744262845327,4000.0,0.00054795,60]
[357636318,1744262845772,357.6762453,0.00059,120]
[357636319,1744262846407,370.91026638,0.00059,120]
[357636320,1744262847403,384.63394623,0.00059,120]
[357636321,1744262847672,600.0,0.00059,120]
[357636322,1744262850163,-150.0,0.00060321,120]
[357636323,1744262850201,-174.0,0.00060411,120]
[357636324,1744262850239,-151.041005,0.00060498,120]
[357636325,1744262850281,-1000000.0,0.000605,120]
[357636326,1744262850322,-1000000.0,0.000605,120]
[357636327,1744262850361,-150.0,0.00060563,120]
[357636328,1744262850667,-247.358,0.00060625,120]
[357636329,1744262850706,-247.358,0.00060625,120]
[357636330,1744262850745,-247.359,0.00060625,120]
[357636331,1744262850783,-247.358,0.00060625,120]
[357636332,1744262850822,-247.358,0.00060625,120]
[357636333,1744262850859,-2000.0,0.000608,90]
[357636334,1744262850899,-150.0,0.00060907,120]
[357636335,1744262850937,-150.0,0.00060959,120]
[357636336,1744262850975,-150.0,0.00060992,120]
[357636337,1744262851013,-800.0,0.00060999,120]
[357636338,1744262851056,-994888.167995,0.00061,120]
[357636339,1744262851317,818.0,0.00045,120]
[357636340,1744262855645,-386.2804933,0.00060274,120]
[357636341,1744262855688,-5111.832005,0.00061,120]
[357636342,1744262855726,-5367.40509812,0.00061,120]
[357636343,1744262855766,-1000000.0,0.00061,120]
[357636344,1744262855804,-2052.27,0.00061,120]
[357636345,1744262855842,-150.0,0.00061066,120]
[357636346,1744262855881,-500.0,0.00061095,120]
[357636347,1744262855919,-1000.0,0.00061095,120]
[357636348,1744262856177,-1000.0,0.00061095,120]
[357636349,1744262856216,-1000.0,0.00061095,120]
[357636350,1744262856253,-1000.0,0.00061095,120]
[357636351,1744262856291,-1000.0,0.00061095,120]
[357636352,1744262856327,-1000.0,0.00061095,120]
[357636353,1744262856362,-350.0,0.00061095,120]
[357636354,1744262856398,-350.0,0.00061095,120]
[357636355,1744262856435,-350.0,0.00061095,120]
[357636356,1744262856473,-350.0,0.00061095,120]
[357636357,1744262856511,-350.0,0.00061095,120]
[357636358,1744262856549,-350.0,0.00061095,120]
[357636359,1744262856586,-350.0,0.00061095,120]
[357636360,1744262856623,-350.0,0.00061095,120]
[357636361,1744262856662,-350.0,0.00061095,120]
[357636362,1744262856697,-350.0,0.00061095,120]
[357636363,1744262856732,-350.0,0.00061095,120]
[357636364,1744262856768,-367.1374846,0.00061095,120]
[357636365,1744262856804,-150.0,0.0006138,120]
[357636366,1744262856841,-150.0,0.000614,120]
[357636367,1744262856878,-151.041005,0.00061498,120]
[357636368,1744262856918,-1000000.0,0.000615,120]
[357636369,1744262856960,-975764.03391398,0.000615,120]
[357636370,1744262860598,6500.0,0.00060273,30]
[357636371,1744262865397,-24235.96608602,0.000615,120]
[357636372,1744262865436,-170.86,0.00061629,120]
[357636373,1744262865475,-550.95,0.00061629,120]
[357636374,1744262865513,-150.0,0.00061644,120]
[357636375,1744262865552,-899900.0,0.000618,120]
[357636376,1744262865590,-500.0,0.00061917,120]
[357636377,1744262865631,-1000000.0,0.00062,120]
[357636378,1744262865670,-432.1572333,0.00062,120]
[357636379,1744262865706,-400.0,0.00062,120]
[357636380,1744262865744,-1000000.0,0.00062,120]
[357636381,1744262865782,-300.0,0.00062,120]
[357636382,1744262865822,-10000.0,0.00062,120]
[357636383,1744262865861,-44629.0,0.00062,120]
[357636384,1744262865901,-445.83367,0.00062,120]
[357636385,1744262865942,-2321.94,0.00062,60]
[357636386,1744262865983,-15963.29301068,0.00062,60]
[357636387,1744262869896,-2538.56,0.0006,120]
[357636388,1744262869938,-1139.02698932,0.00062,60]
[357636389,1744262869977,-150.0,0.00062072,120]
[357636390,1744262870014,-100000.0,0.0006218,120]
[357636391,1744262870051,-400000.0,0.0006222,30]
[357636392,1744262870089,-200.0,0.00062401,120]
[357636393,1744262870127,-151.041005,0.00062498,120]
[357636394,1744262870167,-1000000.0,0.000625,120]
[357636395,1744262870207,-1000000.0,0.000625,120]
[357636396,1744262870244,-1000.0,0.00062519,30]
[357636397,1744262870282,-3023.88,0.000626,120]
[357636398,1744262870324,-500.0,0.00062739,120]
[357636399,1744262870365,-1772.67717675,0.000628,120]
[357636400,1744262870416,-1515.20187447,0.00062919,30]
[357636401,1744262870463,-13567.45405207,0.00062989,120]
[357636402,1744262870503,-474442.15890239,0.00063,120]
[357636403,1744262874481,-525557.84109761,0.00063,120]
[357636404,1744262874519,-3427.05632942,0.00063,120]
[357636405,1744262874556,-4000.0,0.00063,120]
[357636406,1744262874594,-1151.9,0.00063013,120]
[357636407,1744262876626,150.0,0.00041095,30]
[357636408,1744262876860,150.0,0.00041232,30]
[357636409,1744262877443,150.0,0.00041369,30]
[357636410,1744262877679,150.0,0.00041506,30]
[357636411,1744262877928,150.0,0.00041643,30]
[357636412,1744262878177,150.0,0.0004178,30]
[357636413,1744262878978,150.0,0.00041917,30]
[357636414,1744262879054,150.0,0.00042054,30]
[357636415,1744262879160,150.0,0.00042191,30]
[357636416,1744262879333,213.2895732,0.00042328,30]
[357636417,1744262884049,800.0,0.00062,120]
[357636418,1744262884697,20000.0,0.00057,120]
[357636419,1744262884747,147.5367982,0.00015,2]
[357636420,1744262909433,-500.0,0.0005922,120]
[357636421,1744262909469,-500.0,0.0005922,120]
[357636422,1744262909504,-500.0,0.0005922,120]
[357636423,1744262909539,-500.0,0.00059494,120]
[357636424,1744262909575,-500.0,0.00059494,120]
[357636425,1744262909612,-500.0,0.00059768,120]
[357636426,1744262909648,-500.0,0.00059768,120]
[357636427,1744262909680,-500.0,0.00060042,120]
[357636428,1744262909715,-907.28,0.00060042,120]
[357636429,1744262909752,-700.0,0.00060274,30]
[357636430,1744262909788,-997.39122008,0.00060274,120]
[357636431,1744262910086,-500.0,0.00060316,120]
[357636432,1744262910126,-500.0,0.0006059,120]
[357636433,1744262910163,-500.0,0.00060864,120]
[357636434,1744262910198,-10000.0,0.00061,120]
[357636435,1744262910233,-500.0,0.00061138,120]
[357636436,1744262910267,-500.0,0.00061412,120]
[357636437,1744262910305,-500.0,0.00061686,120]
[357636438,1744262910341,-500.0,0.0006196,120]
[357636439,1744262910376,-10000.0,0.00062,120]
[357636440,1744262910412,-800.0,0.00063,120]
[357636441,1744262910449,-151.041005,0.00063498,120]
[357636442,1744262910485,-209.0728214,0.000635,120]
[357636443,1744262910521,-1000000.0,0.000635,120]
[357636444,1744262910556,-500.0,0.00063561,120]
[357636445,1744262910593,-2000.0,0.000636,120]
[357636446,1744262910630,-6281.79065749,0.000637,120]
[357636447,1744262910668,-150.0,0.000639,120]
[357636448,1744262910704,-200.0,0.00064,120]
[357636449,1744262910742,-200.0,0.00064,120]
[357636450,1744262910781,-1000000.0,0.00064,120]
[357636451,1744262910817,-28628.16142746,0.00064,120]
[357636452,1744262910854,-10000.0,0.00064,120]
[357636453,1744262910891,-44629.0,0.00064,120]
[357636454,1744262910928,-205.3645,0.000641,120]
[357636455,1744262910965,-500000.0,0.000642,120]
[357636456,1744262911004,-500.0,0.00064383,120]
[357636457,1744262911042,-25000.0,0.00064432,60]
[357636458,1744262911078,-5418.94267126,0.00064432,60]
[357636459,1744262911115,-25000.0,0.00064432,60]
[357636460,1744262911151,-788.39443453,0.00064432,60]
[357636461,1744262911190,-2120.54624212,0.00064432,60]
[357636462,1744262911229,-2986.999999,0.0006447,88]
[357636463,1744262911267,-151.041005,0.00064498,120]
[357636464,1744262911306,-313974.97401666,0.000645,120]
[357636465,1744262915151,-686025.02598334,0.000645,120]
[357636466,1744262915192,-150.0,0.00064572,120]
[357636467,1744262915230,-2249.5701155,0.000646,120]
[357636468,1744262915267,-2000.0,0.0006488,120]
[357636469,1744262915305,-14108.66693536,0.00064899,120]
[357636470,1744262915342,-1232.60754078,0.000649,120]
[357636471,1744262915379,-2000.0,0.000649,120]
[357636472,1744262915416,-501.496,0.00064943,120]
[357636473,1744262915455,-1237.39,0.00064986,120]
[357636474,1744262915491,-4000.0,0.00064987,60]
[357636475,1744262915529,-16898.77154931,0.00064987,120]
[357636476,1744262915566,-64104.0,0.0006499,120]
[357636477,1744262915606,-5533.72455521,0.00064998,120]
[357636478,1744262915646,-1000.0,0.00064999,120]
[357636479,1744262915685,-800.0,0.00064999,120]
[357636480,1744262915727,-50000.0,0.00065,65]
[357636481,1744262915767,-1000000.0,0.00065,120]
[357636482,1744262915803,-10000.0,0.00065,120]
[357636483,1744262915840,-3919.87996284,0.00065,120]
[357636484,1744262915878,-58000.0,0.00065,30]
[357636485,1744262915917,-5954.0,0.00065,120]
[357636486,1744262915955,-500.0,0.00065205,120]
[357636487,1744262915994,-21706.07926625,0.00065309,120]
[357636488,1744262916035,-1000000.0,0.0006545,120]
[357636489,1744262916077,-48078.78809141,0.000655,120]
[357636490,1744262920082,-951921.21190859,0.000655,120]
[357636491,1744262920123,-5163.51046896,0.000655,120]
[357636492,1744262920163,-150.0,0.00065529,120]
[357636493,1744262920202,-1515.20187447,0.00065655,30]
[357636494,1744262920240,-51975.03196662,0.00065743,120]
[357636495,1744262920278,-1989275.04378136,0.00065743,120]
[357636496,1744262924319,-1151.9,0.00065753,120]
[357636497,1744262924358,-500.0,0.00065753,30]
[357636498,1744262924396,-500.0,0.00065753,30]
[357636499,1744262924434,-889.86747819,0.00065753,30]
[357636500,1744262924472,-700.0,0.00065753,120]
[357636501,1744262924511,-700.0,0.00065753,120]
[357636502,1744262925036,588.60602214,0.00065,30]
[357636503,1744262926000,2994969.62649967,0.00065743,120]
[357636509,1744262929280,-4999.999999,0.00045,90]
[357636510,1744262929349,-5030.37350033,0.00065743,120]
[357636511,1744262929389,-2989969.62650067,0.00065743,120]
[357636512,1744262933518,-150.999999,0.0006,120]
[357636513,1744262933558,-5588.60602113,0.00065743,120]
[357636514,1744262933596,-2994260.39397987,0.00065743,120]
[357636515,1744262944244,-270.49,0.0006,120]
[357636516,1744262944285,-10304.70207886,0.00065,120]
[357636517,1744262944324,-709.23251983,0.00065743,120]
[357636518,1744262944365,-1046453.0971971,0.00065743,120]
[357636519,1744262944405,-4648.0,0.00065753,30]
[357636520,1744262944444,-4648.0,0.00065753,30]
[357636521,1744262944483,-4648.0,0.00065753,30]
[357636522,1744262944521,-4648.0,0.00065753,30]
[357636523,1744262944558,-4648.0,0.00065753,30]
[357636524,1744262944595,-4648.0,0.00065753,30]
[357636525,1744262944634,-4648.0,0.00065753,30]
[357636526,1744262944673,-4648.0,0.00065753,30]
[357636527,1744262944714,-4648.0,0.00065753,30]
[357636528,1744262944754,-4648.0,0.00065753,30]
[357636529,1744262944793,-4648.0,0.00065753,30]
[357636530,1744262944832,-4648.0,0.00065753,30]
[357636531,1744262944871,-4648.0,0.00065753,30]
[357636532,1744262944910,-4648.0,0.00065753,30]
[357636533,1744262944951,-4648.0,0.00065753,30]
[357636534,1744262944992,-4648.0,0.00065753,30]
[357636535,1744262945034,-4648.0,0.00065753,30]
[357636536,1744262945073,-4648.0,0.00065753,30]
[357636537,1744262945113,-4648.0,0.00065753,30]
[357636538,1744262945154,-4659.0,0.00065753,30]
[357636539,1744262945321,1849291.47820421,0.00065743,120]
[357636540,1744262945407,6676.27750046,0.00043187,120]
[357636544,1744262956090,-300.0,0.00014999,2]
[357636545,1744262956114,-27166.18087708,0.00015,2]
[357636550,1744262982780,-1087.6571374,0.00019399,2]
[357636551,1744262982805,-28572.0792,0.000199,2]
[357636552,1744262982833,-1000.0,0.000199,2]
[357636553,1744262982858,-2500.0,0.000199,2]
[357636554,1744262982882,-263.0498,0.000199,2]
[357636555,1744262982906,-300.7688,0.000199,2]
[357636556,1744262982930,-903.0,0.0002,2]
[357636557,1744262982954,-1275020.29414345,0.0002,2]
[357636558,1744262982977,-15556.8040828,0.0002,4]
[357636559,1744262983001,-164638.24821951,0.0002,2]
[357636560,1744262983025,-5000.0,0.0002,2]
[357636561,1744262983050,-367343.90328387,0.0002,2]
[357636562,1744262983073,-210.07079226,0.0002,2]
[357636563,1744262983096,-2000.0,0.0002,4]
[357636564,1744262983118,-151.706282,0.0002,2]
[357636565,1744262983142,-151.0,0.0002,2]
[357636566,1744262983165,-154.484404,0.0002,2]
[357636567,1744262983189,-151.0,0.0002,2]
[357636568,1744262983212,-151.0,0.0002,2]
[357636569,1744262983235,-151.0,0.0002,2]
[357636570,1744262983259,-151.0,0.0002,2]
[357636571,1744262983282,-211.02132,0.0002,2]
[357636572,1744262983305,-211.02132,0.0002,2]
[357636573,1744262983331,-218.450032,0.0002,2]
[357636574,1744262983367,-218.450032,0.0002,2]
[357636575,1744262983393,-151.73,0.0002,2]
[357636576,1744262983419,-151.73,0.0002,2]
[357636577,1744262983443,-151.73,0.0002,2]
[357636578,1744262983467,-151.73,0.0002,2]
[357636579,1744262983491,-151.73,0.0002,2]
[357636580,1744262983516,-170.993393,0.0002,2]
[357636581,1744262983540,-170.993393,0.0002,2]
[357636582,1744262983566,-1146832.53213398,0.0002,2]
[357636583,1744263013092,575.0,0.0001789,2]
[357636584,1744263018667,1286.0,0.0001789,2]
[357636585,1744263022890,2045.0,0.0001789,2]
[357636586,1744263029439,151.0,0.00017679,2]
[357636593,1744263031517,-815.742853,0.00019399,2]
[357636594,1744263031527,-587.0324,0.000199,2]
[357636595,1744263031536,-25302.18055932,0.0002,2]
[357636600,1744263031644,-9173.37437808,0.0002,2]
[357636601,1744263031654,-150.0,0.0002,2]
[357636602,1744263031664,-3054.22128033,0.0002,2]
[357636603,1744263031674,-280.95104296,0.0002001,2]
[357636604,1744263031683,-2254.46411694,0.0002001,2]
[357636605,1744263031692,-392.45,0.00020082,2]
[357636606,1744263031702,-161.37,0.00020185,2]
[357636607,1744263031711,-376.13226242,0.00020491,2]
[357636608,1744263031720,-151.0,0.00020679,2]
[357636609,1744263031730,-1437.0,0.0002089,2]
[357636610,1744263031739,-1278.0,0.0002089,2]
[357636611,1744263031748,-907.0,0.0002089,2]
[357636612,1744263031758,-791.0,0.0002089,2]
[357636613,1744263031767,-4144.0,0.0002089,2]
[357636614,1744263031777,-544.0,0.0002089,2]
[357636615,1744263031787,-1121.0,0.0002089,2]
[357636616,1744263031797,-575.0,0.0002089,2]
[357636617,1744263031806,-1286.0,0.0002089,2]
[357636618,1744263031815,-2045.0,0.0002089,2]
[357636619,1744263031825,-500.0,0.00020924,2]
[357636620,1744263031835,-150.99,0.00020951,2]
[357636621,1744263031845,-17645.11928982,0.00021,2]
[357636622,1744263031854,-300.0,0.00021,2]
[357636623,1744263031864,-13909.73013833,0.00021,2]
[357636624,1744263031873,-731.34,0.00021483,2]
[357636625,1744263031882,-250.0,0.0002189,2]
[357636626,1744263031892,-236.35,0.00021917,2]
[357636627,1744263031901,-300.0,0.00021918,2]
[357636628,1744263031911,-18815.05972043,0.00021919,2]
[357636629,1744263031923,-4168.56843775,0.00021919,2]
[357636630,1744263031934,-916.37184182,0.00021919,2]
[357636631,1744263031944,-229.28503645,0.00022,2]
[357636632,1744263032193,-1000.0,0.00022177,2]
[357636633,1744263032224,-150.0,0.00022753,2]
[357636634,1744263032234,-150.0,0.00022753,2]
[357636635,1744263032245,-500.0,0.00022932,2]
[357636636,1744263032254,-350.0,0.00023,2]
[357636637,1744263032264,-236.35,0.00023287,2]
[357636638,1744263032273,-151.0,0.00023679,2]
[357636639,1744263032283,-731.34,0.00023747,2]
[357636640,1744263032292,-349.4,0.00023836,2]
[357636641,1744263032302,-1437.0,0.0002389,2]
[357636642,1744263032311,-1278.0,0.0002389,2]
[357636643,1744263032320,-616.193,0.0002389,2]
[357636644,1744263032330,-791.0,0.0002389,2]
[357636645,1744263032339,-2182.93812173,0.0002389,2]